[Event "Titled Tuesday Blitz April 11 Late 2023"]
[White "Cigan, Jason"]
[Black "Sanchez Alvares, Kelvin Antonio"]
[WhiteFideId "2064022"]
[BlackFideId "3906680"]
[WhiteElo "2000"]
[BlackElo "2217"]
[Result "1-0"]
[Round "05"]
[TimeControl "180+2"]
[Date "2023.04.11"]
[WhiteClock "0:00:14"]
[BlackClock "0:00:10"]

1. e4 {[%clk 0:03:00]}  e5 {[%clk 0:02:58]} 2. Nf3 {[%clk 0:03:00]}  Nc6 {[%clk 0:02:57]} 3. Bb5 {[%clk 0:03:01]}  a6 {[%clk 0:02:56]} 4. Ba4 {[%clk 0:03:01]}  b5 {[%clk 0:02:56]} 5. Bb3 {[%clk 0:03:00]}  Nf6 {[%clk 0:02:48]} 6. O-O {[%clk 0:03:00]}  Be7 {[%clk 0:02:45]} 7. d3 {[%clk 0:02:57]}  O-O {[%clk 0:02:38]} 8. Nc3 {[%clk 0:02:56]}  d6 {[%clk 0:02:38]} 9. a3 {[%clk 0:02:56]}  Be6 {[%clk 0:02:21]} 10. Nd5 {[%clk 0:02:55]}  Bxd5 {[%clk 0:02:20]} 11. exd5 {[%clk 0:02:56]}  Na5 {[%clk 0:02:20]} 12. Ba2 {[%clk 0:02:55]}  c5 {[%clk 0:02:03]} 13. b4 {[%clk 0:02:48]}  cxb4 {[%clk 0:02:00]} 14. axb4 {[%clk 0:02:49]}  Nb7 {[%clk 0:01:56]} 15. Re1 {[%clk 0:02:45]}  Re8 {[%clk 0:01:54]} 16. d4 {[%clk 0:02:44]}  e4 {[%clk 0:01:49]} 17. Nd2 {[%clk 0:02:36]}  Bf8 {[%clk 0:01:48]} 18. Nf1 {[%clk 0:02:23]}  h6 {[%clk 0:01:48]} 19. Ne3 {[%clk 0:02:20]}  Qd7 {[%clk 0:01:47]} 20. Bd2 {[%clk 0:02:16]}  g6 {[%clk 0:01:40]} 21. c4 {[%clk 0:02:15]}  bxc4 {[%clk 0:01:37]} 22. Bxc4 {[%clk 0:02:15]}  a5 {[%clk 0:01:34]} 23. bxa5 {[%clk 0:02:15]}  Reb8 {[%clk 0:01:16]} 24. a6 {[%clk 0:02:10]}  Nd8 {[%clk 0:01:11]} 25. Qc2 {[%clk 0:02:04]}  Rc8 {[%clk 0:01:09]} 26. Reb1 {[%clk 0:01:54]}  Rc7 {[%clk 0:00:59]} 27. Qb3 {[%clk 0:01:46]}  Rca7 {[%clk 0:00:54]} 28. Ba5 {[%clk 0:01:40]}  h5 {[%clk 0:00:48]} 29. Bb6 {[%clk 0:01:38]}  Rb8 {[%clk 0:00:40]} 30. Qd1 {[%clk 0:01:35]}  Raa8 {[%clk 0:00:39]} 31. a7 {[%clk 0:01:26]}  Rxb6 {[%clk 0:00:35]} 32. Rxb6 {[%clk 0:01:25]}  Rxa7 {[%clk 0:00:35]} 33. Rab1 {[%clk 0:01:21]}  Bh6 {[%clk 0:00:27]} 34. h3 {[%clk 0:01:19]}  Rb7 {[%clk 0:00:26]} 35. Rxb7 {[%clk 0:01:12]}  Nxb7 {[%clk 0:00:24]} 36. Qd2 {[%clk 0:00:59]}  Kh7 {[%clk 0:00:19]} 37. Qb4 {[%clk 0:00:58]}  Nd8 {[%clk 0:00:17]} 38. Qb6 {[%clk 0:00:53]}  g5 {[%clk 0:00:17]} 39. Bb5 {[%clk 0:00:51]}  Qe7 {[%clk 0:00:17]} 40. Nf5 {[%clk 0:00:48]}  Qf8 {[%clk 0:00:17]} 41. Nxh6 {[%clk 0:00:46]}  Kxh6 {[%clk 0:00:17]} 42. Bc6 {[%clk 0:00:39]}  g4 {[%clk 0:00:16]} 43. h4 {[%clk 0:00:38]}  g3 {[%clk 0:00:16]} 44. fxg3 {[%clk 0:00:39]}  Ng4 {[%clk 0:00:16]} 45. Qb2 {[%clk 0:00:32]}  Qe7 {[%clk 0:00:15]} 46. Rf1 {[%clk 0:00:27]}  f6 {[%clk 0:00:15]} 47. Qe2 {[%clk 0:00:21]}  e3 {[%clk 0:00:15]} 48. Ba4 {[%clk 0:00:20]}  Nb7 {[%clk 0:00:15]} 49. Bd1 {[%clk 0:00:19]}  Na5 {[%clk 0:00:13]} 50. Qd3 {[%clk 0:00:19]}  Nb7 {[%clk 0:00:12]} 51. Bxg4 {[%clk 0:00:18]}  hxg4 {[%clk 0:00:12]} 52. Re1 {[%clk 0:00:18]}  Qc7 {[%clk 0:00:11]} 53. Qxe3+ {[%clk 0:00:18]}  Kg6 {[%clk 0:00:11]} 54. Qf4 {[%clk 0:00:16]}  Qc3 {[%clk 0:00:11]} 55. Qxg4+ {[%clk 0:00:16]}  Kh7 {[%clk 0:00:10]} 56. Re7+ {[%clk 0:00:15]}  Kh8 {[%clk 0:00:10]} 57. Qg7# {[%clk 0:00:14]} 1-0


[Site "https://www.chess.com"]

[Event "Titled Tuesday Blitz April 11 Late 2023"]
[White "Gurevich, Dmitry"]
[Black "Rian, Kapriaga"]
[WhiteFideId "2000407"]
[BlackFideId "7103263"]
[WhiteElo "2506"]
[BlackElo "2089"]
[Result "1-0"]
[Round "05"]
[TimeControl "180+2"]
[Date "2023.04.11"]
[WhiteClock "0:00:35"]
[BlackClock "0:00:10"]

1. d4 {[%clk 0:02:37]}  Nf6 {[%clk 0:02:59]} 2. c4 {[%clk 0:02:36]}  e6 {[%clk 0:02:59]} 3. Nc3 {[%clk 0:02:36]}  Bb4 {[%clk 0:02:58]} 4. e3 {[%clk 0:02:37]}  O-O {[%clk 0:02:52]} 5. Bd3 {[%clk 0:02:37]}  d5 {[%clk 0:02:51]} 6. cxd5 {[%clk 0:02:36]}  exd5 {[%clk 0:02:50]} 7. Ne2 {[%clk 0:02:37]}  c6 {[%clk 0:02:49]} 8. O-O {[%clk 0:02:36]}  Bg4 {[%clk 0:02:45]} 9. f3 {[%clk 0:02:36]}  Bh5 {[%clk 0:02:44]} 10. Bd2 {[%clk 0:02:31]}  Bg6 {[%clk 0:02:43]} 11. Be1 {[%clk 0:02:27]}  Re8 {[%clk 0:02:41]} 12. Bf2 {[%clk 0:02:21]}  Nbd7 {[%clk 0:02:36]} 13. Ng3 {[%clk 0:02:15]}  c5 {[%clk 0:02:34]} 14. a3 {[%clk 0:02:10]}  cxd4 {[%clk 0:02:26]} 15. axb4 {[%clk 0:02:08]}  dxc3 {[%clk 0:02:26]} 16. bxc3 {[%clk 0:02:09]}  a6 {[%clk 0:02:25]} 17. c4 {[%clk 0:02:00]}  Bxd3 {[%clk 0:02:21]} 18. Qxd3 {[%clk 0:01:59]}  Ne5 {[%clk 0:02:20]} 19. Qc3 {[%clk 0:01:59]}  dxc4 {[%clk 0:02:15]} 20. f4 {[%clk 0:01:55]}  Neg4 {[%clk 0:02:03]} 21. Rad1 {[%clk 0:01:48]}  Qc7 {[%clk 0:02:01]} 22. Rd4 {[%clk 0:01:43]}  b5 {[%clk 0:01:51]} 23. h3 {[%clk 0:01:42]}  Nxf2 {[%clk 0:01:50]} 24. Rxf2 {[%clk 0:01:42]}  a5 {[%clk 0:01:50]} 25. e4 {[%clk 0:01:32]}  axb4 {[%clk 0:01:49]} 26. Qxb4 {[%clk 0:01:31]}  Qa7 {[%clk 0:00:28]} 27. Qd2 {[%clk 0:01:20]}  Rec8 {[%clk 0:00:18]} 28. e5 {[%clk 0:01:18]}  Ne8 {[%clk 0:00:18]} 29. Ne4 {[%clk 0:01:00]}  b4 {[%clk 0:00:16]} 30. Rd7 {[%clk 0:00:47]}  Qa1+ {[%clk 0:00:15]} 31. Rf1 {[%clk 0:00:38]}  c3 {[%clk 0:00:12]} 32. Qd5 {[%clk 0:00:37]}  Qa5 {[%clk 0:00:09]} 33. Qxf7+ {[%clk 0:00:35]}  Kh8 {[%clk 0:00:10]} 34. Qf8# {[%clk 0:00:35]} 1-0


[Site "https://www.chess.com"]

[Event "Titled Tuesday Blitz April 11 Late 2023"]
[White "Sailer, Mike"]
[Black "Carrasco Miranda, Andres"]
[WhiteFideId "2012901"]
[BlackFideId "3405990"]
[WhiteElo "2109"]
[BlackElo "2183"]
[Result "0-1"]
[Round "05"]
[TimeControl "180+2"]
[Date "2023.04.11"]
[WhiteClock "0:00:03"]
[BlackClock "0:00:02"]

1. d4 {[%clk 0:02:59]}  Nf6 {[%clk 0:02:56]} 2. Bg5 {[%clk 0:02:59]}  d5 {[%clk 0:02:55]} 3. Bxf6 {[%clk 0:02:55]}  gxf6 {[%clk 0:02:56]} 4. e3 {[%clk 0:02:56]}  c5 {[%clk 0:02:56]} 5. Nf3 {[%clk 0:02:56]}  Qb6 {[%clk 0:02:56]} 6. Qc1 {[%clk 0:02:55]}  Bg4 {[%clk 0:02:55]} 7. Be2 {[%clk 0:02:54]}  Nc6 {[%clk 0:02:42]} 8. c3 {[%clk 0:02:52]}  Rc8 {[%clk 0:02:41]} 9. Nbd2 {[%clk 0:02:43]}  e5 {[%clk 0:02:37]} 10. dxc5 {[%clk 0:02:26]}  Bxc5 {[%clk 0:02:33]} 11. Nb3 {[%clk 0:02:26]}  Bf8 {[%clk 0:02:17]} 12. O-O {[%clk 0:02:21]}  Bh6 {[%clk 0:02:17]} 13. Qd1 {[%clk 0:02:14]}  Rd8 {[%clk 0:02:15]} 14. h3 {[%clk 0:02:08]}  Bh5 {[%clk 0:02:11]} 15. Nh2 {[%clk 0:01:56]}  Bg6 {[%clk 0:02:04]} 16. Ng4 {[%clk 0:01:56]}  Bg7 {[%clk 0:01:53]} 17. Bf3 {[%clk 0:01:32]}  f5 {[%clk 0:01:36]} 18. Nh2 {[%clk 0:01:23]}  e4 {[%clk 0:01:30]} 19. Be2 {[%clk 0:01:20]}  f4 {[%clk 0:01:24]} 20. exf4 {[%clk 0:01:08]}  Qc7 {[%clk 0:01:22]} 21. g3 {[%clk 0:01:04]}  h5 {[%clk 0:01:09]} 22. h4 {[%clk 0:00:55]}  Bf5 {[%clk 0:01:06]} 23. Re1 {[%clk 0:00:54]}  Bf6 {[%clk 0:01:05]} 24. Nf1 {[%clk 0:00:53]}  Bxh4 {[%clk 0:01:03]} 25. gxh4 {[%clk 0:00:51]}  Qxf4 {[%clk 0:01:03]} 26. Qd2 {[%clk 0:00:31]}  Qxh4 {[%clk 0:00:57]} 27. Qe3 {[%clk 0:00:28]}  Rg8+ {[%clk 0:00:51]} 28. Ng3 {[%clk 0:00:29]}  Ne5 {[%clk 0:00:34]} 29. Nd4 {[%clk 0:00:13]}  Bg4 {[%clk 0:00:27]} 30. Bb5+ {[%clk 0:00:07]}  Ke7 {[%clk 0:00:18]} 31. Kf1 {[%clk 0:00:06]}  Qh3+ {[%clk 0:00:13]} 32. Kg1 {[%clk 0:00:06]}  Bf3 {[%clk 0:00:12]} 33. Nf5+ {[%clk 0:00:02]}  Qxf5 {[%clk 0:00:10]} 34. Qc5+ {[%clk 0:00:03]}  Kf6 {[%clk 0:00:02]} 0-1


[Site "https://www.chess.com"]

[Event "Titled Tuesday Blitz April 11 Late 2023"]
[White "Gonzalez Zamora, Juan Carlos"]
[Black "Souza Santos, Carlos Roberto"]
[WhiteFideId "3507548"]
[BlackFideId "2150603"]
[WhiteElo "2535"]
[BlackElo "2064"]
[Result "1-0"]
[Round "05"]
[TimeControl "180+2"]
[Date "2023.04.11"]
[WhiteClock "0:00:54"]
[BlackClock "0:00:13"]

1. e4 {[%clk 0:03:00]}  d6 {[%clk 0:00:21]} 2. d4 {[%clk 0:02:58]}  Nf6 {[%clk 0:00:21]} 3. Nc3 {[%clk 0:02:58]}  g6 {[%clk 0:00:21]} 4. Be2 {[%clk 0:02:58]}  Bg7 {[%clk 0:00:22]} 5. g4 {[%clk 0:02:58]}  O-O {[%clk 0:00:22]} 6. g5 {[%clk 0:02:58]}  Ne8 {[%clk 0:00:22]} 7. h4 {[%clk 0:02:59]}  c5 {[%clk 0:00:23]} 8. Be3 {[%clk 0:02:58]}  cxd4 {[%clk 0:00:22]} 9. Bxd4 {[%clk 0:02:59]}  e5 {[%clk 0:00:22]} 10. Be3 {[%clk 0:02:59]}  Be6 {[%clk 0:00:22]} 11. h5 {[%clk 0:02:54]}  Nc6 {[%clk 0:00:21]} 12. Qd2 {[%clk 0:02:45]}  Nd4 {[%clk 0:00:20]} 13. O-O-O {[%clk 0:02:30]}  Rc8 {[%clk 0:00:19]} 14. f4 {[%clk 0:02:25]}  b5 {[%clk 0:00:19]} 15. Bxd4 {[%clk 0:02:20]}  exd4 {[%clk 0:00:19]} 16. Nxb5 {[%clk 0:02:20]}  Bxa2 {[%clk 0:00:19]} 17. Nxd4 {[%clk 0:02:18]}  Bc4 {[%clk 0:00:18]} 18. hxg6 {[%clk 0:02:09]}  fxg6 {[%clk 0:00:17]} 19. Ngf3 {[%clk 0:01:50]}  Qb6 {[%clk 0:00:16]} 20. Bxc4+ {[%clk 0:01:16]}  Rxc4 {[%clk 0:00:17]} 21. Qd3 {[%clk 0:01:14]}  Rc5 {[%clk 0:00:16]} 22. Qb3+ {[%clk 0:01:11]}  Kh8 {[%clk 0:00:15]} 23. Rxh7+ {[%clk 0:01:00]}  Kxh7 {[%clk 0:00:14]} 24. Rh1+ {[%clk 0:01:00]}  Bh6 {[%clk 0:00:14]} 25. Rxh6+ {[%clk 0:01:01]}  Kg7 {[%clk 0:00:15]} 26. Ne6+ {[%clk 0:01:01]}  Kf7 {[%clk 0:00:13]} 27. Nxc5+ {[%clk 0:00:54]} 1-0


[Site "https://www.chess.com"]

[Event "Titled Tuesday Blitz April 11 Late 2023"]
[White "Alekseenko, Kirill"]
[Black "Vachier-Lagrave, Maxime"]
[WhiteFideId "4135539"]
[BlackFideId "623539"]
[WhiteElo "2683"]
[BlackElo "2740"]
[Result "0-1"]
[Round "06"]
[TimeControl "180+2"]
[Date "2023.04.11"]
[WhiteClock "0:00:02"]
[BlackClock "0:01:04"]

1. d4 {[%clk 0:03:00]}  Nf6 {[%clk 0:02:59]} 2. Nc3 {[%clk 0:03:01]}  d5 {[%clk 0:02:59]} 3. Bf4 {[%clk 0:03:02]}  c5 {[%clk 0:02:59]} 4. e3 {[%clk 0:03:01]}  cxd4 {[%clk 0:02:59]} 5. exd4 {[%clk 0:03:02]}  a6 {[%clk 0:03:00]} 6. Nce2 {[%clk 0:02:58]}  Bg4 {[%clk 0:02:57]} 7. f3 {[%clk 0:02:46]}  Bf5 {[%clk 0:02:56]} 8. Nc1 {[%clk 0:02:44]}  Nc6 {[%clk 0:02:55]} 9. c3 {[%clk 0:02:43]}  e6 {[%clk 0:02:53]} 10. Bd3 {[%clk 0:02:42]}  Bg6 {[%clk 0:02:52]} 11. Nge2 {[%clk 0:02:41]}  Bd6 {[%clk 0:02:52]} 12. O-O {[%clk 0:02:40]}  O-O {[%clk 0:02:49]} 13. Bxg6 {[%clk 0:02:39]}  hxg6 {[%clk 0:02:49]} 14. Nd3 {[%clk 0:02:40]}  Re8 {[%clk 0:02:46]} 15. Re1 {[%clk 0:02:35]}  Bf8 {[%clk 0:02:44]} 16. Qd2 {[%clk 0:02:05]}  Rc8 {[%clk 0:02:43]} 17. Bg5 {[%clk 0:02:02]}  Qb6 {[%clk 0:02:42]} 18. Kh1 {[%clk 0:01:52]}  Nd7 {[%clk 0:02:37]} 19. Ng3 {[%clk 0:01:50]}  f6 {[%clk 0:02:36]} 20. Be3 {[%clk 0:01:50]}  Kf7 {[%clk 0:02:35]} 21. Bf2 {[%clk 0:01:42]}  Bd6 {[%clk 0:02:33]} 22. h3 {[%clk 0:01:39]}  Qc7 {[%clk 0:02:32]} 23. Nf1 {[%clk 0:01:38]}  Na5 {[%clk 0:02:31]} 24. Rad1 {[%clk 0:01:35]}  Nc4 {[%clk 0:02:31]} 25. Qe2 {[%clk 0:01:32]}  Re7 {[%clk 0:02:29]} 26. Ne3 {[%clk 0:01:32]}  Rh8 {[%clk 0:02:27]} 27. Kg1 {[%clk 0:01:06]}  b5 {[%clk 0:02:26]} 28. Rc1 {[%clk 0:01:03]}  Ree8 {[%clk 0:02:24]} 29. b4 {[%clk 0:01:03]}  Nxe3 {[%clk 0:02:21]} 30. Bxe3 {[%clk 0:01:02]}  Nb6 {[%clk 0:02:22]} 31. Nc5 {[%clk 0:01:02]}  Qc8 {[%clk 0:02:15]} 32. Bf2 {[%clk 0:01:01]}  Nc4 {[%clk 0:02:07]} 33. Qd3 {[%clk 0:01:00]}  Re7 {[%clk 0:02:06]} 34. Re2 {[%clk 0:01:00]}  g5 {[%clk 0:02:05]} 35. Rce1 {[%clk 0:01:00]}  Bxc5 {[%clk 0:02:05]} 36. bxc5 {[%clk 0:01:00]}  Na5 {[%clk 0:02:03]} 37. Qc2 {[%clk 0:00:55]}  Qc6 {[%clk 0:02:02]} 38. Qd3 {[%clk 0:00:55]}  Nc4 {[%clk 0:02:02]} 39. Kh1 {[%clk 0:00:52]}  Qe8 {[%clk 0:01:56]} 40. Bg3 {[%clk 0:00:51]}  Qg8 {[%clk 0:01:56]} 41. Bd6 {[%clk 0:00:50]}  Re8 {[%clk 0:01:55]} 42. a4 {[%clk 0:00:43]}  bxa4 {[%clk 0:01:41]} 43. Qb1 {[%clk 0:00:43]}  Qh7 {[%clk 0:01:38]} 44. Qb7+ {[%clk 0:00:42]}  Kg6 {[%clk 0:01:39]} 45. Rxe6 {[%clk 0:00:39]}  Rxe6 {[%clk 0:01:40]} 46. Rxe6 {[%clk 0:00:40]}  a3 {[%clk 0:01:36]} 47. Qxd5 {[%clk 0:00:37]}  a2 {[%clk 0:01:35]} 48. Re1 {[%clk 0:00:37]}  Re8 {[%clk 0:01:32]} 49. Ra1 {[%clk 0:00:32]}  Qh4 {[%clk 0:01:32]} 50. Kh2 {[%clk 0:00:08]}  Re2 {[%clk 0:01:22]} 51. Bg3 {[%clk 0:00:06]}  Ne3 {[%clk 0:01:22]} 52. Bxh4 {[%clk 0:00:03]}  Nxd5 {[%clk 0:01:21]} 53. Bg3 {[%clk 0:00:03]}  Ne3 {[%clk 0:01:16]} 54. c6 {[%clk 0:00:03]}  Rxg2+ {[%clk 0:01:16]} 55. Kh1 {[%clk 0:00:03]}  Rxg3 {[%clk 0:01:16]} 56. Rxa2 {[%clk 0:00:02]}  Rxh3+ {[%clk 0:01:07]} 57. Kg1 {[%clk 0:00:03]}  Rh8 {[%clk 0:01:06]} 58. Kf2 {[%clk 0:00:03]}  Nd1+ {[%clk 0:01:06]} 59. Kg3 {[%clk 0:00:03]}  Nxc3 {[%clk 0:01:06]} 60. Rxa6 {[%clk 0:00:04]}  Rc8 {[%clk 0:01:05]} 61. Kf2 {[%clk 0:00:03]}  Nd5 {[%clk 0:01:04]} 62. Ke2 {[%clk 0:00:02]}  Nb4 {[%clk 0:01:04]} 0-1


[Site "https://www.chess.com"]

[Event "Titled Tuesday Blitz April 11 Late 2023"]
[White "Caruana, Fabiano"]
[Black "Nakamura, Hikaru"]
[WhiteFideId "2020009"]
[BlackFideId "2016192"]
[WhiteElo "2837"]
[BlackElo "2885"]
[Result "1-0"]
[Round "06"]
[TimeControl "180+2"]
[Date "2023.04.11"]
[WhiteClock "0:00:10"]
[BlackClock "0:00:07"]

1. d4 {[%clk 0:03:00]}  Nf6 {[%clk 0:02:59]} 2. Bf4 {[%clk 0:03:01]}  d5 {[%clk 0:02:57]} 3. e3 {[%clk 0:03:02]}  Bf5 {[%clk 0:02:57]} 4. c4 {[%clk 0:02:59]}  e6 {[%clk 0:02:57]} 5. Nc3 {[%clk 0:02:56]}  Bb4 {[%clk 0:02:55]} 6. Qb3 {[%clk 0:02:55]}  Nc6 {[%clk 0:02:55]} 7. Nf3 {[%clk 0:02:52]}  O-O {[%clk 0:02:53]} 8. Be2 {[%clk 0:02:46]}  Ne4 {[%clk 0:02:52]} 9. O-O {[%clk 0:02:32]}  Bxc3 {[%clk 0:02:30]} 10. bxc3 {[%clk 0:02:33]}  Na5 {[%clk 0:02:30]} 11. Qb4 {[%clk 0:02:33]}  Nxc4 {[%clk 0:02:24]} 12. Bxc4 {[%clk 0:02:33]}  dxc4 {[%clk 0:02:25]} 13. Qxc4 {[%clk 0:02:27]}  c5 {[%clk 0:02:23]} 14. Qb3 {[%clk 0:02:17]}  Qe7 {[%clk 0:02:19]} 15. h3 {[%clk 0:02:13]}  Rac8 {[%clk 0:02:16]} 16. Rfc1 {[%clk 0:02:13]}  h6 {[%clk 0:02:08]} 17. a4 {[%clk 0:02:11]}  Rfd8 {[%clk 0:02:00]} 18. a5 {[%clk 0:02:09]}  f6 {[%clk 0:02:00]} 19. Qb2 {[%clk 0:02:05]}  g5 {[%clk 0:01:57]} 20. Bh2 {[%clk 0:02:05]}  Bg6 {[%clk 0:01:57]} 21. Nd2 {[%clk 0:02:04]}  Nxd2 {[%clk 0:01:54]} 22. Qxd2 {[%clk 0:02:04]}  e5 {[%clk 0:01:55]} 23. Qb2 {[%clk 0:01:58]}  cxd4 {[%clk 0:01:50]} 24. cxd4 {[%clk 0:01:59]}  exd4 {[%clk 0:01:51]} 25. exd4 {[%clk 0:01:58]}  Bf7 {[%clk 0:01:45]} 26. Re1 {[%clk 0:01:53]}  Qf8 {[%clk 0:01:44]} 27. Qxb7 {[%clk 0:01:47]}  Ra8 {[%clk 0:01:38]} 28. a6 {[%clk 0:01:38]}  Bd5 {[%clk 0:01:37]} 29. Qc7 {[%clk 0:01:38]}  Rdc8 {[%clk 0:01:32]} 30. Qa5 {[%clk 0:01:36]}  Qf7 {[%clk 0:01:30]} 31. Bd6 {[%clk 0:01:36]}  Re8 {[%clk 0:01:29]} 32. Bc5 {[%clk 0:01:35]}  Bc6 {[%clk 0:01:27]} 33. Qc3 {[%clk 0:01:31]}  Qd5 {[%clk 0:01:26]} 34. f3 {[%clk 0:01:29]}  Kf7 {[%clk 0:01:26]} 35. Qc2 {[%clk 0:01:27]}  Kg7 {[%clk 0:01:26]} 36. Rxe8 {[%clk 0:01:26]}  Bxe8 {[%clk 0:01:17]} 37. Re1 {[%clk 0:01:23]}  h5 {[%clk 0:01:17]} 38. Re7+ {[%clk 0:01:22]}  Bf7 {[%clk 0:01:18]} 39. Qe4 {[%clk 0:01:02]}  Qxe4 {[%clk 0:01:18]} 40. fxe4 {[%clk 0:01:03]}  Re8 {[%clk 0:01:18]} 41. Rxa7 {[%clk 0:01:01]}  Rxe4 {[%clk 0:01:19]} 42. Kf2 {[%clk 0:00:57]}  Kg6 {[%clk 0:01:13]} 43. Rd7 {[%clk 0:00:45]}  Re8 {[%clk 0:01:08]} 44. a7 {[%clk 0:00:44]}  Bc4 {[%clk 0:01:09]} 45. d5 {[%clk 0:00:34]}  f5 {[%clk 0:00:58]} 46. Re7 {[%clk 0:00:31]}  Rd8 {[%clk 0:00:52]} 47. d6 {[%clk 0:00:31]}  Bd5 {[%clk 0:00:53]} 48. Rc7 {[%clk 0:00:25]}  Kf6 {[%clk 0:00:49]} 49. Bb4 {[%clk 0:00:20]}  f4 {[%clk 0:00:47]} 50. Rc5 {[%clk 0:00:12]}  Ba8 {[%clk 0:00:44]} 51. Bc3+ {[%clk 0:00:13]}  Ke6 {[%clk 0:00:43]} 52. Rxg5 {[%clk 0:00:13]}  Rxd6 {[%clk 0:00:44]} 53. Rxh5 {[%clk 0:00:13]}  Rd7 {[%clk 0:00:40]} 54. Rh6+ {[%clk 0:00:09]}  Kf5 {[%clk 0:00:40]} 55. Ra6 {[%clk 0:00:08]}  Rc7 {[%clk 0:00:40]} 56. Ra5+ {[%clk 0:00:08]}  Ke4 {[%clk 0:00:39]} 57. Ra3 {[%clk 0:00:08]}  Kf5 {[%clk 0:00:38]} 58. Kg1 {[%clk 0:00:07]}  Re7 {[%clk 0:00:35]} 59. Bd4 {[%clk 0:00:07]}  Re1+ {[%clk 0:00:33]} 60. Kf2 {[%clk 0:00:08]}  Rd1 {[%clk 0:00:34]} 61. Bc3 {[%clk 0:00:06]}  Rc1 {[%clk 0:00:34]} 62. Ra5+ {[%clk 0:00:05]}  Ke4 {[%clk 0:00:29]} 63. Bd2 {[%clk 0:00:05]}  Rc2 {[%clk 0:00:30]} 64. Ke2 {[%clk 0:00:06]}  Kd4 {[%clk 0:00:28]} 65. Ra4+ {[%clk 0:00:06]}  Ke5 {[%clk 0:00:27]} 66. Rxf4 {[%clk 0:00:07]}  Bxg2 {[%clk 0:00:20]} 67. Rg4 {[%clk 0:00:06]}  Bh1 {[%clk 0:00:20]} 68. Rg5+ {[%clk 0:00:06]}  Ke6 {[%clk 0:00:19]} 69. Rg1 {[%clk 0:00:06]}  Bb7 {[%clk 0:00:18]} 70. Rg7 {[%clk 0:00:06]}  Bh1 {[%clk 0:00:18]} 71. Rg6+ {[%clk 0:00:06]}  Kf5 {[%clk 0:00:17]} 72. Ra6 {[%clk 0:00:07]}  Ba8 {[%clk 0:00:18]} 73. Ra5+ {[%clk 0:00:07]}  Ke4 {[%clk 0:00:18]} 74. h4 {[%clk 0:00:08]}  Rc7 {[%clk 0:00:16]} 75. h5 {[%clk 0:00:08]}  Re7 {[%clk 0:00:16]} 76. h6 {[%clk 0:00:08]}  Kd4+ {[%clk 0:00:16]} 77. Kf2 {[%clk 0:00:09]}  Kd3 {[%clk 0:00:17]} 78. Bg5 {[%clk 0:00:08]}  Re2+ {[%clk 0:00:17]} 79. Kg3 {[%clk 0:00:08]}  Rg2+ {[%clk 0:00:17]} 80. Kf4 {[%clk 0:00:09]}  Rf2+ {[%clk 0:00:17]} 81. Ke5 {[%clk 0:00:09]}  Rf7 {[%clk 0:00:11]} 82. Ra3+ {[%clk 0:00:09]}  Ke2 {[%clk 0:00:08]} 83. Bf6 {[%clk 0:00:09]}  Rb7 {[%clk 0:00:07]} 84. Bg7 {[%clk 0:00:09]}  Rb5+ {[%clk 0:00:07]} 85. Kd6 {[%clk 0:00:09]}  Rh5 {[%clk 0:00:08]} 86. Kc7 {[%clk 0:00:09]}  Rh1 {[%clk 0:00:07]} 87. Kb8 {[%clk 0:00:09]}  Bd5 {[%clk 0:00:08]} 88. a8=Q {[%clk 0:00:09]}  Bxa8 {[%clk 0:00:07]} 89. Kxa8 {[%clk 0:00:10]} 1-0


[Site "https://www.chess.com"]

[Event "Titled Tuesday Blitz April 11 Late 2023"]
[White "Hakobyan, Aram"]
[Black "Zakhartsov, Vladimir"]
[WhiteFideId "13306677"]
[BlackFideId "4145097"]
[WhiteElo "2584"]
[BlackElo "2497"]
[Result "1-0"]
[Round "06"]
[TimeControl "180+2"]
[Date "2023.04.11"]
[WhiteClock "0:01:29"]
[BlackClock "0:00:05"]

1. d4 {[%clk 0:03:00]}  Nf6 {[%clk 0:02:58]} 2. c4 {[%clk 0:03:01]}  e6 {[%clk 0:02:58]} 3. a3 {[%clk 0:03:01]}  c5 {[%clk 0:02:53]} 4. d5 {[%clk 0:03:01]}  exd5 {[%clk 0:02:54]} 5. cxd5 {[%clk 0:03:02]}  d6 {[%clk 0:02:54]} 6. Nc3 {[%clk 0:03:01]}  g6 {[%clk 0:02:54]} 7. e4 {[%clk 0:03:01]}  Bg7 {[%clk 0:02:55]} 8. Nf3 {[%clk 0:03:02]}  O-O {[%clk 0:02:55]} 9. Be2 {[%clk 0:03:02]}  b5 {[%clk 0:02:51]} 10. Qc2 {[%clk 0:02:54]}  a6 {[%clk 0:02:41]} 11. O-O {[%clk 0:02:54]}  Re8 {[%clk 0:02:42]} 12. Bf4 {[%clk 0:02:52]}  Bg4 {[%clk 0:02:35]} 13. Rfe1 {[%clk 0:02:51]}  Bxf3 {[%clk 0:02:26]} 14. Bxf3 {[%clk 0:02:51]}  Qc7 {[%clk 0:02:25]} 15. e5 {[%clk 0:02:51]}  dxe5 {[%clk 0:02:07]} 16. d6 {[%clk 0:02:52]}  Qxd6 {[%clk 0:02:08]} 17. Bxa8 {[%clk 0:02:51]}  exf4 {[%clk 0:02:08]} 18. Rxe8+ {[%clk 0:02:47]}  Nxe8 {[%clk 0:02:09]} 19. Ne4 {[%clk 0:02:47]}  Qe5 {[%clk 0:02:02]} 20. Re1 {[%clk 0:02:38]}  Nc7 {[%clk 0:01:53]} 21. Bb7 {[%clk 0:02:33]}  f5 {[%clk 0:01:46]} 22. Nf6+ {[%clk 0:02:10]}  Qxf6 {[%clk 0:01:44]} 23. Qxc5 {[%clk 0:02:10]}  Qd8 {[%clk 0:01:20]} 24. Rc1 {[%clk 0:02:10]}  Ne8 {[%clk 0:00:15]} 25. Qc8 {[%clk 0:02:07]}  Qe7 {[%clk 0:00:09]} 26. Qxb8 {[%clk 0:02:01]}  Bxb2 {[%clk 0:00:09]} 27. Rb1 {[%clk 0:01:54]}  Bxa3 {[%clk 0:00:07]} 28. Bxa6 {[%clk 0:01:54]}  b4 {[%clk 0:00:06]} 29. Bb5 {[%clk 0:01:47]}  Kf7 {[%clk 0:00:06]} 30. Qxf4 {[%clk 0:01:44]}  Nd6 {[%clk 0:00:05]} 31. Bd3 {[%clk 0:01:37]}  Qe6 {[%clk 0:00:06]} 32. h3 {[%clk 0:01:34]}  Qd5 {[%clk 0:00:05]} 33. Bc2 {[%clk 0:01:29]}  Kf6 {[%clk 0:00:05]} 34. Rd1 {[%clk 0:01:29]} 1-0


[Site "https://www.chess.com"]